fUSD/lending_fUSD_20240531
["ID","MTS","AMOUNT","RATE_DAILY","PERIOD"]
[328314197,1717152647001,-150.0,0.00030973,2]
[328314198,1717152647010,-150.0,0.00030995,2]
[328314199,1717152647019,-150.0,0.00031002,2]
[328314200,1717152647027,-150.0,0.0003101,2]
[328314201,1717152647036,-150.0,0.00031015,2]
[328314202,1717152647045,-150.0,0.00031035,2]
[328314203,1717152647055,-150.0,0.00031043,2]
[328314204,1717152647063,-1011.87374061,0.00031044,10]
[328314205,1717152647072,-150.0,0.00031046,2]
[328314206,1717152647081,-150.0,0.00031092,2]
[328314207,1717152647090,-150.0,0.00031107,2]
[328314208,1717152647099,-544.8183478,0.00031109,2]
[328314209,1717152647110,-150.0,0.00031118,2]
[328314210,1717152647119,-150.0,0.00031123,2]
[328314211,1717152647128,-150.0,0.00031144,2]
[328314212,1717152647137,-150.0,0.00031147,2]
[328314213,1717152647146,-150.0,0.00031159,2]
[328314214,1717152647154,-150.0,0.00031169,2]
[328314215,1717152647163,-150.0,0.00031187,2]
[328314216,1717152647172,-150.0,0.00031193,2]
[328314217,1717152647181,-150.0,0.00031194,2]
[328314218,1717152647191,-150.0,0.00031196,2]
[328314219,1717152647200,-150.0,0.00031208,2]
[328314220,1717152647209,-150.0,0.00031227,2]
[328314221,1717152647218,-150.0,0.0003123,2]
[328314222,1717152647227,-150.0,0.0003125,2]
[328314223,1717152647237,-150.0,0.00031274,2]
[328314224,1717152647246,-6902.0,0.00031323,2]
[328314225,1717152647255,-150.0,0.00031367,2]
[328314226,1717152647264,-294.06098,0.0003148,2]
[328314227,1717152647279,-153.82452482,0.00031521,7]
[328314228,1717152647295,-500.0,0.00031546,2]
[328314229,1717152647304,-200.0,0.00031546,2]
[328314230,1717152647314,-150.0,0.00031637,2]
[328314231,1717152647324,-10700.0,0.000317,11]
[328314232,1717152647335,-1106.94965217,0.000317,2]
[328314233,1717152647343,-719.34637926,0.000317,2]
[328314234,1717152647353,-6953.79158806,0.000317,2]
[328314235,1717152647362,-187.32653037,0.000317,2]
[328314236,1717152647374,-151.0,0.00031786,7]
[328314237,1717152647384,-151.0,0.00031786,7]
[328314238,1717152647393,-155.505113,0.00031786,7]
[328314239,1717152647405,-1274.6618821,0.00031786,2]
[328314240,1717152647415,-5418.1739439,0.00031786,2]
[328314241,1717152647424,-391.5591245,0.00031786,2]
[328314242,1717152647434,-3900.2061807,0.00031786,2]
[328314243,1717152647443,-47245.0339916,0.00031786,2]
[328314244,1717152647452,-155.0,0.00031798,4]
[328314245,1717152647463,-426.75743422,0.00031798,4]
[328314246,1717152647472,-194.05994514,0.00031798,4]
[328314247,1717152647482,-364.01775065,0.00031798,4]
[328314248,1717152647491,-180.27358525,0.00031798,4]
[328314249,1717152647501,-308.00943843,0.00031798,4]
[328314250,1717152647511,-474.71281456,0.00031798,4]
[328314251,1717152647521,-347.64508827,0.00031798,4]
[328314252,1717152647530,-321.83343734,0.00031798,4]
[328314253,1717152647539,-156.08957032,0.00031798,4]
[328314254,1717152647549,-209.25006848,0.00031798,4]
[328314255,1717152647558,-6772.86623355,0.00031798,4]
[328314256,1717152647567,-3836.33318421,0.00031798,4]
[328314257,1717152647577,-270.37311109,0.00031798,4]
[328314258,1717152647586,-1276.160178,0.00031798,4]
[328314259,1717152647596,-1484.46793169,0.00031798,4]
[328314260,1717152647606,-155.62404505,0.00031798,4]
[328314261,1717152647615,-428.57808424,0.00031798,4]
[328314262,1717152647625,-260.19458091,0.00031798,4]
[328314263,1717152647635,-1311.78694986,0.00031798,4]
[328314264,1717152647644,-3121.96908849,0.00031799,4]
[328314265,1717152647654,-290.74,0.00031799,2]
[328314266,1717152647663,-311953.10365145,0.000318,9]
[328314267,1717152647784,-322.75889949,0.000318,9]
[328314268,1717152742460,157.053119,0.00035,90]
[328314269,1717152761423,157.053119,0.00035,90]
[328314270,1717152762475,157.053119,0.00035,90]
[328314271,1717152775584,174.053119,0.00035,90]
[328314273,1717153412289,169.93,0.00030409,120]
[328314274,1717153537267,-243.54037139,0.000139,2]
[328314275,1717153537289,-300.0,0.000139,2]
[328314276,1717153537311,-150.0,0.00019725,2]
[328314277,1717153537331,-300.0,0.00023993,2]
[328314278,1717153537354,-160.97,0.00024384,2]
[328314279,1717153537373,-323.25348322,0.00024549,2]
[328314280,1717153648110,-150.0,0.00019725,2]
[328314281,1717153648135,-690.831602,0.00024549,2]
[328314282,1717153648157,-38.81548465,0.00024549,2]
[328314292,1717153834816,-232.19327399,0.00024449,2]
[328314293,1717153834826,-3834.07200045,0.00024549,2]
[328314294,1717153834837,-301036.10278295,0.00024549,2]
[328314295,1717153834848,-243337.00613181,0.00024549,2]
[328314296,1717153834858,-20244.72603148,0.00024549,2]
[328314297,1717153834867,-3186.0,0.000285,4]
[328314298,1717153834877,-212.41,0.00028649,2]
[328314299,1717153834886,-1293.42230872,0.0003021,4]
[328314300,1717153834895,-250.0,0.00030287,2]
[328314301,1717153834904,-168.64562346,0.0003055,10]
[328314302,1717153834914,-212.41,0.00030913,2]
[328314303,1717153834923,-155.57657283,0.00031008,7]
[328314304,1717153834932,-166.93725303,0.0003105,7]
[328314305,1717153834942,-150.66714897,0.00031066,7]
[328314306,1717153834952,-168.64562343,0.0003108,10]
[328314307,1717153834961,-245.05082,0.0003148,2]
[328314308,1717153834970,-500.0,0.00031546,2]
[328314309,1717153834979,-200.0,0.00031546,2]
[328314310,1717153834988,-406.5542,0.00031562,10]
[328314311,1717153834998,-421.7,0.00031585,2]
[328314312,1717153835007,-163.84,0.00031585,2]
[328314313,1717153835016,-150.0,0.00031585,2]
[328314314,1717153835026,-162.82,0.00031585,2]
[328314315,1717153835036,-352.63,0.00031585,2]
[328314316,1717153835047,-150.0,0.00031585,2]
[328314317,1717153835057,-300.0,0.00031585,2]
[328314318,1717153835067,-163.84,0.00031585,2]
[328314319,1717153835079,-150.0,0.00031585,2]
[328314320,1717153835087,-150.0,0.00031585,2]
[328314321,1717153835097,-352.63,0.00031585,2]
[328314322,1717153835107,-421.7,0.00031585,2]
[328314323,1717153835117,-150.0,0.00031585,2]
[328314324,1717153835127,-352.63,0.00031585,2]
[328314325,1717153835137,-150.0,0.00031585,2]
[328314326,1717153835146,-421.7,0.00031585,2]
[328314327,1717153835157,-163.84,0.00031585,2]
[328314328,1717153835166,-150.0,0.00031585,2]
[328314329,1717153835177,-150.0,0.00031585,2]
[328314330,1717153835186,-421.7,0.00031585,2]
[328314331,1717153835196,-163.84,0.00031585,2]
[328314332,1717153835207,-150.0,0.00031585,2]
[328314333,1717153835217,-150.0,0.00031585,2]
[328314334,1717153835227,-150.0,0.00031585,2]
[328314335,1717153835236,-150.0,0.00031585,2]
[328314336,1717153835247,-421.7,0.00031585,2]
[328314337,1717153835256,-163.84,0.00031585,2]
[328314338,1717153835265,-150.0,0.00031585,2]
[328314339,1717153835275,-352.63,0.00031585,2]
[328314340,1717153835284,-421.7,0.00031585,2]
[328314341,1717153835294,-300.0,0.00031585,2]
[328314342,1717153835303,-163.84,0.00031585,2]
[328314343,1717153835315,-352.63,0.00031585,2]
[328314344,1717153835325,-150.0,0.00031585,2]
[328314345,1717153835335,-163.84,0.00031585,2]
[328314346,1717153835346,-150.0,0.00031585,2]
[328314347,1717153835356,-421.7,0.00031585,2]
[328314348,1717153835365,-352.63,0.00031585,2]
[328314349,1717153835374,-163.84,0.00031585,2]
[328314350,1717153835384,-421.7,0.00031585,2]
[328314351,1717153835395,-352.63,0.00031585,2]
[328314352,1717153835406,-150.0,0.00031585,2]
[328314353,1717153835415,-239.96,0.00031585,2]
[328314354,1717153835425,-421.7,0.00031585,2]
[328314355,1717153835434,-163.84,0.00031585,2]
[328314356,1717153835443,-2500.0,0.000316,11]
[328314357,1717153835453,-168.64562343,0.0003161,10]
[328314358,1717153835463,-264.347,0.00031699,2]
[328314359,1717153835473,-893.1055,0.00031699,2]
[328314360,1717153835482,-18119.75491838,0.000317,2]
[328314361,1717153835491,-155.66238512,0.000317,3]
[328314362,1717153835502,-2160.18831424,0.000317,7]
[328314369,1717153838071,-8685.62878576,0.000317,7]
[328314370,1717153838081,-5000.0,0.000317,11]
[328314371,1717153838090,-275.8617905,0.00031786,2]
[328314372,1717153838100,-78617.45640251,0.00031786,2]
[328314373,1717153838115,-2084.73116119,0.00031786,2]
[328314374,1717153838125,-2564.44800715,0.00031786,2]
[328314375,1717153838136,-983.20668382,0.00031786,2]
[328314376,1717153838258,-3114.53060433,0.00031786,2]
[328314377,1717153838268,-5258.41229562,0.00031786,2]
[328314378,1717153838280,-8351.64732288,0.00031786,2]
[328314379,1717153838290,-406.3489757,0.00031786,2]
[328314380,1717153838300,-245.29235978,0.00031798,4]
[328314381,1717153838311,-155.5707998,0.00031798,4]
[328314382,1717153838320,-250.32722147,0.00031798,4]
[328314383,1717153838330,-1065.47621405,0.00031799,4]
[328314384,1717153838340,-17904.45884264,0.00031799,4]
[328314385,1717153838350,-218.0,0.000318,5]
[328314386,1717153838361,-299563.30198887,0.000318,2]
[328314387,1717153838373,-1233.21807201,0.000318,2]
[328314395,1717153841331,-860.48638546,0.000318,2]
[328314396,1717153842508,-161.26360729,0.000317,2]
[328314397,1717153842517,-59203.44960907,0.000318,2]
[328314398,1717153842529,-44240.12174664,0.000318,2]
[328314399,1717153842540,-5967.7665863,0.000318,2]
[328314400,1717153842551,-393.29106466,0.000318,2]
[328314401,1717153842562,-136862.03917546,0.000318,2]
[328314402,1717153842687,-442.99999994,0.000318,2]
[328314405,1717153843286,-328.39001,0.000318,2]
[328314406,1717153843297,-342.30432612,0.000318,2]
[328314407,1717153843308,-12037.11186831,0.000318,2]
[328314408,1717153843495,-1896.78888185,0.000318,2]
[328314409,1717153843508,-4893.76786919,0.000318,2]
[328314410,1717153843519,-615.26835534,0.000318,2]
[328314411,1717153843530,-7938.01449163,0.000318,2]
[328314419,1717153848398,-213.24002382,0.00031799,2]
[328314420,1717153848408,-174.91665441,0.00031799,2]
[328314421,1717153848417,-195.0,0.000318,5]
[328314422,1717153848426,-613.80303619,0.000318,2]
[328314423,1717153848438,-626.76000821,0.000318,2]
[328314424,1717153848448,-560.52287682,0.000318,2]
[328314449,1717153888926,-155.0,0.00017259,2]
[328314450,1717153888948,-753.70684987,0.00017259,2]
[328314453,1717153929917,-268.20766282,0.00017259,2]
[328314454,1717153935151,1387.53349446,0.00017259,2]
[328314455,1717153935823,-2084.73116119,0.00017259,2]
[328314456,1717154062764,-3373.0,0.00017159,2]
[328314457,1717154070252,-1000.0,0.00017159,2]
[328314460,1717154275920,1500.0,0.00030137,30]
[328314461,1717154756172,-687.51527312,0.00016375,2]
[328314462,1717154756191,-603.59407355,0.00016376,2]
[328314477,1717155032417,-5232.046305,0.00016121,2]
[328314478,1717155032428,-282.43739626,0.00016201,2]
[328314479,1717155032437,-155.0,0.00016202,2]
[328314480,1717155032446,-535.46209097,0.00016203,2]
[328314481,1717155032456,-150.0,0.00016275,2]
[328314482,1717155032465,-1099.37855668,0.00016276,2]
[328314483,1717155032474,-1099.37855668,0.00016276,2]
[328314484,1717155032483,-289321.22630967,0.00016376,2]
[328314485,1717155032667,-2285.28828624,0.00016376,2]
[328314501,1717155038392,-256639.48180395,0.00016376,2]
[328314502,1717155038402,-322.7571644,0.00016445,2]
[328314503,1717155038411,-9606.3988,0.00017159,2]
[328314504,1717155038421,-1050.41,0.00017534,2]
[328314505,1717155038430,-499.99,0.00017808,2]
[328314506,1717155038439,-150.99,0.00017808,2]
[328314507,1717155038449,-210.0,0.00017902,2]
[328314508,1717155038459,-293.0,0.00019693,2]
[328314509,1717155038468,-300.41,0.00019839,2]
[328314510,1717155038477,-779.57,0.00021054,2]
[328314511,1717155038487,-200.0,0.00021085,2]
[328314512,1717155038496,-627.99,0.00021423,2]
[328314513,1717155038506,-200.0,0.00021529,2]
[328314514,1717155038515,-150.0,0.00021613,2]
[328314515,1717155038527,-250.0,0.00021626,2]
[328314516,1717155038536,-250.0,0.00021701,2]
[328314517,1717155038546,-1220.77,0.00021763,2]
[328314518,1717155038555,-155.78,0.0002177,2]
[328314519,1717155038565,-155.78,0.00021911,2]
[328314520,1717155038574,-169.93,0.00021918,2]
[328314521,1717155038584,-155.78,0.00022053,2]
[328314522,1717155038593,-177.68,0.00022081,2]
[328314523,1717155038603,-300.41,0.00022103,2]
[328314524,1717155038612,-155.78,0.00022195,2]
[328314525,1717155038622,-1419.23,0.00022318,2]
[328314526,1717155038631,-207.062,0.00022329,2]
[328314527,1717155038641,-975.0,0.00022329,2]
[328314528,1717155038650,-2735.834,0.00022329,2]
[328314529,1717155038660,-37971.0,0.00022329,2]
[328314530,1717155038669,-155.78,0.00022337,2]
[328314531,1717155038679,-155.78,0.00022479,2]
[328314532,1717155038688,-10517.82995684,0.00022479,2]
[328314533,1717155038719,-3999.94289995,0.00022479,2]
[328314534,1717155038746,-2002.88607447,0.00022479,2]
[328314535,1717155038758,-621.74699519,0.00022479,2]
[328314536,1717155038769,-999.3192,0.00022479,2]
[328314642,1717155041526,-3418.5,0.00022479,2]
[328314652,1717155042930,-2329.77487355,0.00022479,2]
[328314653,1717155042940,-155.78,0.0002262,2]
[328314654,1717155042950,-155.78,0.00022762,2]
[328314655,1717155042959,-155.78,0.00022904,2]
[328314656,1717155042969,-170.62,0.00023594,2]
[328314657,1717155042979,-779.57,0.00023794,2]
[328314658,1717155042988,-280.0,0.00023944,2]
[328314659,1717155042998,-2610.89507478,0.00024058,2]
[328314660,1717155043011,-152.70385167,0.00024349,2]
[328314661,1717155043023,-849.24597161,0.00024349,2]
[328314698,1717155043502,-69.97237672,0.00024349,2]
[328314700,1717155043512,-257.3786,0.00024349,2]
[328314702,1717155043522,-300.41,0.00024367,2]
[328314703,1717155043531,-151.27165067,0.00024384,2]
[328314706,1717155043543,-3.25834933,0.00024384,2]
[328314708,1717155043553,-163.87,0.00024384,2]
[328314710,1717155043562,-247.56849087,0.00024449,2]
[328314712,1717155043573,-34214.74501461,0.00024449,2]
[328314714,1717155043584,-3311.11066295,0.00024449,2]
[328314716,1717155043595,-761.30095577,0.00024449,2]
[328314719,1717155043607,-1533.39895385,0.00024449,2]
[328314721,1717155043619,-2885.68168572,0.00024449,2]
[328314723,1717155043630,-655.16092701,0.00024449,2]
[328314763,1717155043998,-701.33067573,0.00024449,2]
[328314765,1717155044013,-6878.79406961,0.00024449,2]
[328314767,1717155044024,-7869.67772281,0.00024449,2]
[328314799,1717155046332,-627.44,0.00024449,2]
[328314813,1717155046563,-478.66672785,0.00024449,2]
[328314820,1717155053197,-753.70684987,0.00016376,2]
[328314821,1717155053832,-155.0,0.00016376,2]
[328314822,1717155054528,-1387.53349446,0.00016376,2]
[328314823,1717155055152,-268.20766282,0.00016376,2]
[328314824,1717155055818,-2084.73116119,0.00016376,2]
[328314832,1717155246142,-3028.17100871,0.000118,2]
[328314833,1717155247668,-2564.44800715,0.000118,2]
[328314834,1717155249447,-2151.52539889,0.000118,2]
[328314835,1717155271097,263.39819742,6.94e-05,2]
[328314836,1717155303713,703.52394926,0.00035,93]
[328314837,1717155311325,548245.99639986,6.94e-05,2]
[328314838,1717155333363,247.24558525,6.94e-05,2]
[328314839,1717155333387,547998.75081461,6.94e-05,2]
[328314840,1717155349686,5593.18275905,6.94e-05,2]
[328314841,1717155351532,511389.05430255,6.94e-05,2]
[328314843,1717155554799,-268.20766282,0.00010989,2]
[328314844,1717155554821,-252.89515552,0.00010989,2]
[328314845,1717155554842,-517.38287921,0.0001099,2]
[328314846,1717155554863,-155.0,0.00010999,2]
[328314847,1717155554885,-783.17738963,0.00011,2]
[328314850,1717155947179,-429.06448337,0.00010899,2]
[328314851,1717155947199,-731.85981427,0.00011,2]
[328314852,1717155947217,-462.6392598,0.00013899,2]
[328314883,1717156232186,-336.59570554,0.000138,2]
[328314885,1717156232196,-289.26934897,0.00013899,2]
[328314887,1717156232206,-128.12196252,0.00013899,2]
[328314889,1717156232346,-856.26166783,0.00013899,2]
[328314890,1717156232409,-3122.66084388,0.00013899,2]
[328314891,1717156232421,-531.80120502,0.00013899,2]
[328314904,1717156238111,-73.06267655,0.00013899,2]
[328314905,1717156238120,-1514.645,0.000139,2]
[328314906,1717156238130,-88.09946862,0.0001399,2]
[328314907,1717156238142,-3077.5582141,0.0001399,2]
[328314908,1717156238154,-1725.11273109,0.0001399,2]
[328314909,1717156238164,-274.82226892,0.00013999,2]
[328314910,1717156238176,-424.88047589,0.00013999,2]
[328314911,1717156238303,-300.29725519,0.00013999,2]
[328314912,1717156238313,-150.0,0.00013999,2]
[328314913,1717156238323,-150.0,0.00013999,2]
[328314914,1717156238334,-31790.18002069,0.00014,2]
[328314915,1717156238355,-530.00511085,0.00014,2]
[328314916,1717156238370,-335.125,0.00014,2]
[328314917,1717156238383,-790.06698422,0.00014,2]
[328314918,1717156238397,-123798.52457041,0.00014,2]
[328314919,1717156238407,-536.76916186,0.00015398,2]
[328314920,1717156238416,-210.0,0.00015399,2]
[328314921,1717156238427,-210.0,0.00015399,2]
[328314922,1717156238436,-9606.3988,0.00016275,2]
[328314923,1717156238448,-1000.0,0.00016275,2]
[328314924,1717156238457,-1050.41,0.00016275,2]
[328314925,1717156238470,-150.99,0.00016276,2]
[328314926,1717156238481,-1063.62414582,0.00016375,5]
[328314927,1717156238490,-241.14987128,0.00016376,2]
[328314928,1717156238500,-293.0,0.00016939,2]
[328314929,1717156238510,-8550.79143235,0.0002,4]
[328314931,1717156238520,-316.24,0.00022107,2]
[328314933,1717156238530,-1000.0,0.00022174,2]
[328314934,1717156238540,-2500.0,0.00022174,2]
[328314936,1717156238549,-975.0,0.00022274,2]
[328314937,1717156238559,-4784.062,0.00022274,2]
[328314939,1717156238569,-37971.0,0.00022274,2]
[328314940,1717156238579,-520.05,0.00022825,2]
[328314941,1717156238590,-250.0,0.00022911,2]
[328314942,1717156238599,-150.0,0.00022926,2]
[328314944,1717156238609,-170.07,0.00023063,2]
[328314945,1717156238619,-627.99,0.00023067,2]
[328314946,1717156238629,-200.0,0.0002308,2]
[328314947,1717156238638,-200.0,0.00023166,2]
[328314948,1717156238648,-155.79,0.00023238,2]
[328314949,1717156238658,-1220.77,0.00023479,2]
[328314950,1717156238668,-155.79,0.00023481,2]
[328314951,1717156238678,-155.79,0.00023723,2]
[328314952,1717156238688,-12779.38,0.00023872,2]
[328314953,1717156238698,-155.79,0.00023965,2]
[328314954,1717156238708,-250.0,0.0002412,2]
[328314955,1717156238718,-177.68,0.00024168,2]
[328314956,1717156238728,-240.10226,0.000242,2]
[328314957,1717156238738,-155.79,0.00024207,2]
[328314958,1717156238747,-316.24,0.00024371,2]
[328314959,1717156238757,-157.43,0.00024384,2]
[328314960,1717156238766,-155.79,0.00024449,2]
[328314961,1717156238776,-18359.59211599,0.00024549,2]
[328314962,1717156238786,-169.93,0.00024665,2]
[328314963,1717156238796,-1000.0,0.00025,2]
[328314964,1717156238806,-27393.834,0.00025274,2]
[328314965,1717156238816,-520.05,0.00025565,2]
[328314966,1717156238826,-376.0,0.00026157,2]
[328314967,1717156238836,-316.24,0.00026635,2]
[328314968,1717156238847,-240.10227,0.000267,2]
[328314969,1717156238856,-1000.0,0.00027,5]
[328314970,1717156238866,-520.05,0.00028305,2]
[328314971,1717156238876,-686.0,0.000285,4]
[328314972,1717156238887,-316.24,0.00028899,2]
[328314973,1717156238896,-1000.0,0.00029,5]
[328314974,1717156238906,-240.10227,0.000292,2]
[328314975,1717156238916,-376.0,0.00029427,2]
[328314976,1717156238926,-570.11162433,0.00029587,2]
[328314977,1717156238936,-421.7,0.00029941,2]
[328314978,1717156238946,-163.84,0.00029941,2]
[328314979,1717156238956,-163.84,0.00029941,2]
[328314980,1717156238966,-527.12,0.00029941,2]
[328314981,1717156238975,-161.43,0.00029941,2]
[328314982,1717156238985,-1235.38020448,0.0003,3]
[328314983,1717156238995,-44584.55547108,0.00030137,2]
[328314984,1717156239006,-459.0,0.00030158,7]
[328314985,1717156239016,-266.0,0.00030567,7]
[328314986,1717156239026,-429.29,0.00030738,2]
[328314987,1717156239036,-429.29,0.00030746,2]
[328314988,1717156239046,-429.29,0.00030754,2]
[328314989,1717156239057,-429.29,0.00030762,2]
[328314990,1717156239067,-429.29,0.0003077,2]
[328314991,1717156239076,-429.29,0.00030778,2]
[328314992,1717156239086,-429.29,0.00030786,2]
[328314993,1717156239097,-429.29,0.00030794,2]
[328314994,1717156239107,-429.29,0.00030802,2]
[328314995,1717156239117,-429.29,0.0003081,2]
[328314996,1717156239127,-429.29,0.00030819,2]
[328314997,1717156239137,-429.29,0.00030827,2]
[328314998,1717156239147,-429.29,0.00030835,2]
[328314999,1717156239157,-429.29,0.00030843,2]
[328315000,1717156239167,-429.29,0.00030851,2]
[328315001,1717156239177,-429.29,0.00030859,2]
[328315002,1717156239187,-429.29,0.00030867,2]
[328315003,1717156239198,-429.29,0.00030875,2]
[328315004,1717156239207,-429.29,0.00030883,2]
[328315005,1717156239217,-429.29,0.00030891,2]
[328315006,1717156239228,-416.0,0.00031,8]
[328315007,1717156239238,-1404.177596,0.00031,10]
[328315008,1717156239248,-316.24,0.00031163,2]
[328315009,1717156239259,-316.38392431,0.0003123,7]
[328315010,1717156239269,-1298.39020343,0.0003123,4]
[328315011,1717156239279,-300.0,0.00031303,2]
[328315012,1717156239288,-150.0,0.00031346,2]
[328315013,1717156239298,-154.53,0.00031421,2]
[328315014,1717156239308,-500.0,0.00031545,2]
[328315015,1717156239318,-500.0,0.00031546,2]
[328315016,1717156239328,-153.25751709,0.00031587,7]
[328315017,1717156239339,-546.11428676,0.000316,11]
[328315018,1717156239365,-333.13494006,0.000316,11]
[328315036,1717156242354,-1008.59910984,0.000316,11]
[328315043,1717156242422,-212.15166334,0.000316,11]
[328315046,1717156242437,-1775.96430308,0.000316,30]
[328315049,1717156242454,-760.77972415,0.000316,30]
[328315078,1717156242934,-5466.5426958,0.000316,30]
[328315080,1717156243057,-6198.4652919,0.000316,30]
[328315082,1717156243174,-608.84785106,0.000316,30]
[328315085,1717156243194,-13758.07885475,0.000316,30]
[328315087,1717156243207,-153.25751709,0.00031685,7]
[328315088,1717156243220,-322.7571644,0.00031686,2]
[328315089,1717156243232,-151.0,0.000317,5]
[328315091,1717156243244,-242.2501461,0.000317,3]
[328315093,1717156243256,-258.03500226,0.000317,11]
[328315096,1717156243272,-1032.75,0.000317,11]
[328315098,1717156243360,-3009.21499774,0.000317,11]
[328315099,1717156243373,-240.10227,0.000317,2]
[328315100,1717156243389,-174.25743602,0.000317,2]
[328315101,1717156243401,-3099.8400954,0.00031786,2]
[328315102,1717156243414,-347.4551935,0.00031786,2]
[328315103,1717156243427,-601.44407768,0.00031786,2]
[328315104,1717156243443,-2098.22094398,0.00031786,2]
[328315105,1717156243538,-6845.5,0.00031786,2]
[328315106,1717156243602,-2216.43092884,0.00031786,2]
[328315107,1717156243616,-1541.93891599,0.00031786,2]
[328315108,1717156243632,-1378.17112786,0.00031786,2]
[328315131,1717156294272,212.57,0.00030484,120]
[328315134,1717156630338,-150.0,0.00035584,120]
[328315135,1717156630368,-150.0,0.00035861,120]
[328315137,1717157143193,-657.82936263,0.0001356,2]
[328315138,1717157143214,-327.42148466,0.00013561,2]
[328315139,1717157143234,-507.10124101,0.00013561,2]
[328315140,1717157182498,-200.0,0.00032877,30]
[328315141,1717157182526,-104912.01542716,0.000329,30]
[328315142,1717157182717,-9892.38848037,0.000329,30]
[328315143,1717157233221,-268.78049174,0.00013555,2]
[328315144,1717157233242,-610.86659491,0.00013556,2]
[328315149,1717157432358,-155.0,0.00013553,2]
[328315150,1717157432369,-1208.21933057,0.00013554,2]
[328315151,1717157432379,-282.43739626,0.00013555,2]
[328315152,1717157432388,-299.33734552,0.00013556,2]
[328315153,1717157432398,-839.49088046,0.00013556,2]
[328315154,1717157432523,-107.19412079,0.00013556,2]
[328315155,1717157432532,-264.49842411,0.00013618,2]
[328315156,1717157432637,-801.39479792,0.00013618,2]
[328315157,1717157432648,-1275.09803465,0.00013619,2]
[328315158,1717157432657,-500.07308227,0.0001362,2]
[328315159,1717157432669,-585.82028788,0.0001362,2]
[328315160,1717157432678,-214.2508268,0.00013621,2]
[328315161,1717157432689,-1390.06,0.00013621,2]
[328315162,1717157432700,-560.16991532,0.00013621,2]
[328315163,1717157432709,-150.0,0.00013898,2]
[328315164,1717157432719,-180.97654398,0.00013899,2]
[328315165,1717157432728,-410.2235979,0.00013899,2]
[328315166,1717157432737,-1017.95,0.00013899,2]
[328315167,1717157432746,-499.99,0.00014982,2]
[328315168,1717157432755,-4361.1251,0.000199,2]
[328315169,1717157432764,-160.97,0.00024384,2]
[328315170,1717157432776,-292.63,0.00024745,2]
[328315171,1717157432785,-385.6,0.00026104,2]
[328315172,1717157432794,-250.0,0.00026274,2]
[328315173,1717157432803,-250.0,0.00026326,2]
[328315174,1717157432813,-5165.9648428,0.00026427,2]
[328315175,1717157432829,-18714.0351572,0.00026427,2]
[328315176,1717157432838,-425.6,0.00026719,2]
[328315177,1717157432848,-169.93,0.00026949,2]
[328315178,1717157432859,-292.63,0.00027009,2]
[328315179,1717157432869,-2868.0,0.000278,4]
[328315180,1717157432878,-171.05,0.00028755,2]
[328315181,1717157432887,-385.6,0.00028844,2]
[328315182,1717157432896,-292.63,0.00029272,2]
[328315183,1717157432905,-583.75098663,0.00029586,2]
[328315184,1717157432915,-211.51288702,0.00029587,2]
[328315185,1717157432924,-753.00061497,0.00029587,2]
[328315186,1717157432933,-13316.0,0.00029746,2]
[328315187,1717157432942,-425.6,0.00030059,2]
[328315188,1717157432951,-548.70135201,0.00030384,5]
[328315189,1717157432961,-153.17750469,0.00031275,7]
[328315190,1717157432970,-610.0,0.000313,5]
[328315191,1717157432978,-152.56637886,0.00031311,7]
[328315192,1717157432988,-155.34367954,0.00031413,7]
[328315193,1717157432997,-498.50579,0.0003147,2]